Cogmind - Beta 14 @@@ ROGUE MODE // 2024.11.26 @ 10:13:21 Player: Fangrelle Result: Destroyed by FM-OC5(R) with Subdweller Machine Gun Performance ------------- Evolutions (0) 0 Regions Visited (2) 400 Robots Destroyed (36) 180 Value Destroyed (874) 874 Prototype IDs (11) 220 Alien Tech Used (0) 0 Bonus (0) 0 TOTAL SCORE: 1674 Bonus ------- None Cogmind --------- Core Integrity 0/250 Matter 210/300 Energy 250/250 System Corruption 0% Temperature Cool (0) Movement Walking (120) Location -10/Subcaves Parts ------- > --- POWER (1+1) ------ Ion Engine (+) > --- PROPULSION (2+1) - Improved Aluminum Leg (+) Improved Aluminum Leg Improved Aluminum Leg > --- UTILITY (2) ------ Rainbow Chip > --- WEAPON (2+1) ----- Riot Gun (+) Battle Rifle Barrage Gun > --- INVENTORY (5) ---- Improved Aluminum Leg Mining Laser Piercing Trap Peak State ------------ > --- POWER ------------ Ion Engine Ion Engine > --- PROPULSION ------- Improved Aluminum Leg Improved Aluminum Leg Improved Aluminum Leg > --- UTILITY ---------- Scrap Shield Rainbow Chip > --- WEAPON ----------- Battle Rifle Barrage Gun > --- INVENTORY -------- Improved Aluminum Leg EM Pulse Gun Datajack Mining Laser [Rating: 30] Favorites ----------- Power Ion Engine Engine Ion Engine Propulsion Light Treads Treads Light Treads Leg Improved Aluminum Leg Utility Large Storage Unit Device Terrain Scanner Storage Large Storage Unit Processor Rainbow Chip Hackware Hacking Suite Protection Scrap Shield Weapon Assault Rifle Energy Gun EM Pulse Gun Ballistic Gun Assault Rifle Special Weapon Mining Laser Build | -11 -10 -10 ------- Run | Yrd Mat Sub Slots Evolved . | . . . Power . | . . . Propulsion . | . . . Utility . | . . . Weapon . | . . . Parts Attached 28 | . 11 17 Power 2 | . 1 1 Engine 2 | . 1 1 Core . | . . . Reactor . | . . . Propulsion 6 | . 3 3 Treads 3 | . 3 . Leg 3 | . . 3 Wheel . | . . . Hover . | . . . Flight . | . . . Utility 6 | . 3 3 Device 1 | . . 1 Storage 1 | . 1 . Processor 1 | . . 1 Hackware 1 | . 1 . Protection 2 | . 1 1 Artifact . | . . . Weapon 14 | . 4 10 Energy Gun 5 | . 1 4 Energy Cannon . | . . . Ballistic Gun 5 | . 2 3 Ballistic Cannon . | . . . Launcher . | . . . Special Weapon 4 | . 1 3 Impact Weapon . | . . . Slashing Weapon . | . . . Piercing Weapon . | . . . Special Melee Weapon . | . . . Unidentified Prototypes . | . . . Parts Lost 5 | . 1 4 Power 1 | . . 1 Propulsion . | . . . Utility 2 | . . 2 Weapon 2 | . 1 1 Highest Loss Streak 2 | . 1 2 To Critical Strikes . | . . . Average Slot Usage (%) 94 | . 99 90 Engine 14 | . 14 15 Treads 22 | . 27 17 Leg 5 | . . 10 Device 3 | . . 6 Storage 11 | . 14 8 Processor 1 | . . 3 Hackware 6 | . 13 . Protection 2 | . . 4 Energy Gun 7 | . 4 10 Ballistic Gun 15 | . 22 9 Special Weapon 2 | . . 3 Peak Build Rating 30 | . 11 30 Average Rating 14 | . 9 18 On Entrance 6 | 6 6 8 Naked Turns . | . . . Heaviest Build 33 | 14 32 33 Greatest Support 40 | 20 40 40 Greatest Overweight (x) 8 | . . 8 Average Overweight (x) . | . . . Largest Inventory Capacity 15 | . 15 15 Average Capacity 11 | . 12 11 Most Carried 15 | . 15 15 Average Carried 10 | . 11 10 Final Capacity 15 | 8 15 5 Final Carried 13 | 6 13 3 Class Distribution -------------------- 100% | Mutant Dominant Class ---------------- Mutant | -10/Materials Mutant | -10/Subcaves Resources | -11 -10 -10 ----------- Run | Yrd Mat Sub Matter Collected 977 | 200 465 312 Remotely . | . . . Salvage Created 1225 | . 904 321 Parts 85 | . 61 24 Haulers Intercepted 2 | . 2 . Recyclers Shooed 2 | . 2 . Parts Field Recycled . | . . . Retrieved Matter . | . . . Parts Self-Destructed 7 | . . 7 Prevented . | . . . Kills | -11 -10 -10 ------- Run | Yrd Mat Sub Combat Hostiles Destroyed 27 | . 19 8 Guns 27 | . 19 8 Classes Destroyed 8 | . 6 2 Worker 1 | . 1 . Hauler 2 | . 2 . Operator 3 | . 3 . Watcher 3 | . 3 . Swarmer 9 | . 6 3 Grunt 13 | . 13 . Sentry 1 | . . 1 Subdweller 4 | . . 4 Best Kill Streak 5 | . 5 2 Combat Bots Only 5 | . 5 2 Max Kills in Single Turn 2 | . 2 1 Gunslinging 1 | . 1 . Exploded . | . . . Melee . | . . . Uniques/NPCs Destroyed . | . . . Combat | -11 -10 -10 -------- Run | Yrd Mat Sub Hostile Shots Fired 172 | . 63 109 Missed 54 | . 21 33 Damage Taken 1664 | . 500 1164 Core 268 | . 96 172 Absorbed by Shields . | . . . Core Remaining (%) 100 | 100 . . Volleys Fired 164 | . 92 72 Largest 3 | . 2 3 Hottest 150 | . 100 150 Shots Fired 286 | . 169 117 Gun 243 | . 156 87 Cannon . | . . . Launcher . | . . . Special 43 | . 13 30 Kinetic 198 | . 145 53 Thermal 43 | . 13 30 Explosive . | . . . Electromagnetic 45 | . 11 34 Robot Hit Streak 15 | . 11 15 Robot Miss Streak 4 | . 3 4 Penetration Max . | . . . Secondary Targets 3 | . 1 2 Max Gunslinging Chain 1 | . 1 1 Shots Hit Robots 149 | . 92 57 Core Hits 62 | . 44 18 Critical Kills 1 | . 1 . Critical Parts Destroyed . | . . . Critical Strikes 1 | . 1 . Destroy 1 | . 1 . Melee Attacks . | . . . Impact . | . . . Slashing . | . . . Piercing . | . . . Sneak Attacks . | . . . Combat Hostiles . | . . . Follow-up Attacks . | . . . Damage Inflicted 2053 | . 1220 833 Guns 2029 | . 1196 833 Cannons . | . . . Explosions . | . . . Melee . | . . . Ramming . | . . . Kinetic 1700 | . 1111 589 Thermal 24 | . 24 . Explosive . | . . . Electromagnetic 329 | . 85 244 Impact . | . . . Slashing . | . . . Piercing . | . . . Highest Corruption . | . . . Average Corruption . | . . . Corruption Purged . | . . . Corruption Blocked . | . . . Overload Shots . | . . . Overflow Damage . | . . . Projectiles . | . . . Explosions . | . . . Melee . | . . . Knockbacks . | . . . Impact . | . . . Kinetic . | . . . Secondary . | . . . Self-Inflicted Damage . | . . . Shots . | . . . Rammed . | . . . Targets Rammed . | . . . Kicked . | . . . Crushed . | . . . Highest Temperature 104 | . 104 9 Average Temperature 34 | . 35 5 Received Heat Transfer 432 | . 216 216 Siege Activations . | . . . Robots Corrupted . | . . . Combat Hostiles . | . . . Parts Fried . | . . . Impact Corruptions . | . . . Robots Melted . | . . . Combat Hostiles . | . . . Parts Melted . | . . . Heat Transferred 50 | . 50 . Parts Sabotaged . | . . . Parts Stolen . | . . . Parts Stripped . | . . . Power Chain Reactions . | . . . Alert | -11 -10 -10 ------- Run | Yrd Mat Sub Peak Influence 262 | . 262 . Initial . | . . . Average 117 | . 117 . Maximum Alert Level 1 | . 1 . Low Security (%) 86 | . 86 . Level 1 13 | . 13 . Level 2 . | . . . Level 3 . | . . . Level 4 . | . . . Level 5 . | . . . High Security . | . . . Max Security . | . . . Squads Dispatched 4 | . 4 . Investigation 1 | . 1 . Extermination . | . . . Reinforcement 3 | . 3 . Assault . | . . . Garrison . | . . . Intercept . | . . . Searches Triggered . | . . . Construction Impeded . | . . . Haulers Reinforced . | . . . Active Scanning Responses . | . . . Cargo Convoy Interrupts . | . . . Stealth | -11 -10 -10 --------- Run | Yrd Mat Sub Distress Signals 1 | . 1 . Communications Jammed . | . . . Distress Signals . | . . . Times Spotted 37 | . 26 11 Peak Tracking Total 3 | . 3 3 Tactical Retreats . | . . . Traps | -11 -10 -10 ------- Run | Yrd Mat Sub Traps Triggered 3 | . 3 . Indirectly . | . . . Trap Hack Attempts . | . . . Triggered . | . . . Disarmed . | . . . Reprogrammed . | . . . Reused . | . . . Traps Extracted . | . . . Installed . | . . . Triggered . | . . . Most Traps Carried 1 | . . 1 Machines | -11 -10 -10 ---------- Run | Yrd Mat Sub Machines Disabled 3 | . 2 1 Max in Single Turn 1 | . 1 1 Machines Repaired . | . . . Machines Dismantled . | . . . Machines Sabotaged . | . . . Overloaded Fab Kills . | . . . Hacking | -11 -10 -10 --------- Run | Yrd Mat Sub Machines Accessed 9 | . 6 3 Terminals 5 | . 5 . Fabricators . | . . . Repair Stations . | . . . Recycling Units 1 | . 1 . Scanalyzers . | . . . Garrison Access . | . . . Total Hacks 39 | . 26 13 Successful 24 | . 11 13 Failed 15 | . 15 . Catastrophic . | . . . Database Lockouts . | . . . Manual 25 | . 25 . Terminals 24 | . 24 . Fabricators . | . . . Repair Stations . | . . . Recycling Units 2 | . 2 . Scanalyzers . | . . . Garrison Access . | . . . Terminal Hacks 13 | . . 13 Record 11 | . . 11 Open Door 1 | . . 1 Derelict Proto ID Bank 1 | . . 1 Fabricator Hacks . | . . . Repair Station Hacks . | . . . Recycling Unit Hacks 1 | . 1 . Retrieve Components 1 | . 1 . Scanalyzer . | . . . Garrison Access Hacks . | . . . Unauthorized Hacks 10 | . 10 . Terminals 10 | . 10 . Track 1 | . 1 . Botnet 5 | . 5 . Operators 1 | . 1 . Skim 3 | . 3 . Fabricators . | . . . Repair Stations . | . . . Recycling Units . | . . . Scanalyzers . | . . . Garrison Access . | . . . Data Cores Recovered . | . . . Used . | . . . Hacking Detections 5 | . 5 . Full Trace Events . | . . . Feedback Events . | . . . Feedback Blocked . | . . . Robot Schematics Acquired . | . . . Robots Built . | . . . Authchips . | . . . Time . | . . . Total Robot Build Rating . | . . . Part Schematics Acquired . | . . . Parts Built . | . . . Authchips . | . . . Time . | . . . Total Part Build Rating . | . . . Parts Repaired . | . . . Time . | . . . Parts Recycled . | . . . Recycled Matter . | . . . Retrieved Matter . | . . . Retrieved Components 4 | . 4 . Parts Scanalyzed . | . . . Part Schematics Acquired . | . . . Parts Damaged . | . . . Bothacking | -11 -10 -10 ------------ Run | Yrd Mat Sub Used RIF Installer . | . . . Robots Hacked . | . . . Non-combat . | . . . Combat . | . . . Robot Hacks Applied . | . . . Relay Couplers Released . | . . . Fabnet Peak Effective % . | . . . Robots Rewired . | . . . Allies Hacked . | . . . Hacks Repelled . | . . . Allies | -11 -10 -10 -------- Run | Yrd Mat Sub Total Allies . | . . . Largest Group . | . . . Highest-Rated Group . | . . . Highest-Rated Ally . | . . . Total Orders . | . . . Ally Attacks . | . . . Total Damage . | . . . Kills . | . . . Allies Corrupted . | . . . Allies Melted . | . . . Intel | -11 -10 -10 ------- Run | Yrd Mat Sub Robot Analysis Total . | . . . Derelict Logs Recovered 2 | . . 2 Drone Launches . | . . . Drone Recoveries . | . . . Exploration | -11 -10 -10 ------------- Run | Yrd Mat Sub Turns Passed 4400 | . 2090 2310 Spaces Moved 2340 | 1 963 1376 Core 1 | . . 1 Treads 1686 | . 945 741 Legs 653 | 1 18 634 Wheels . | . . . Hover . | . . . Flight . | . . . Fastest Speed 120 | 120 120 120 Average Speed 149 | 120 159 141 Slowest Speed 450 | 120 160 450 Overloaded Moves . | . . . Propulsion Burnouts . | . . . Robots Hopped . | . . . Cave-ins Triggered . | . . . Exploration Rate (%) 51 | 2 98 53 Regions Visited 2 Branch Regions 1 Pre-discovered Areas 1 | . . 1 Known Exits Taken . | . . . Unknown Exits Taken 2 | 1 1 . Scrap Searched 2 | . . 2 Spaces Dug . | . . . Terrain Destroyed 1 | . 1 . Melee . | . . . Projectile 1 | . 1 . AOE . | . . . Terrain Rammed . | . . . Walls Destroyed . | . . . Machines Disabled . | . . . Actions | -11 -10 -10 --------- Run | Yrd Mat Sub Total 2891 | . 1332 1559 Wait 290 | . 222 68 Move 2338 | . 962 1376 Hop . | . . . Pick Up 34 | . 26 8 Fast Attach 8 | . . 8 Attach 8 | . 6 2 Detach 1 | . . 1 Swap 12 | . 5 7 Drop 30 | . 19 11 Fire 164 | . 92 72 Melee . | . . . Ram . | . . . Kick . | . . . Crush . | . . . Escape Stasis . | . . . Rewire 1 | . . 1 Trap . | . . . Miscellaneous 5 | . . 5 Route ------- -11/Scrapyard -10/Materials (discovered 6 exits: [*Mat x3] / [*Min x2] / *Sub) -10/Subcaves (discovered 1 exit: [*Mat]) History --------- Turn | Location | Event 1 | -11/Scrapyard | Discovered new exit (range 0) 1 | -11/Scrapyard | Entered Materials 316 | -10/Materials | Build established: Mutant 468 | -10/Materials | Discovered new exit (range 10) 726 | -10/Materials | Discovered new exit (range 16) 1152 | -10/Materials | Discovered new exit (range 8) 1398 | -10/Materials | Discovered new exit (range 15) 1552 | -10/Materials | Discovered new exit (range 4) 2071 | -10/Materials | Discovered new exit (range 7) 2091 | -10/Materials | Entered Subcaves 2108 | -10/Subcaves | Core integrity fell below 50% 2184 | -10/Subcaves | Learned Materials terminal intel 2304 | -10/Subcaves | Discovered new exit (range 13) 2335 | -10/Subcaves | Core integrity fell below 20% 2362 | -10/Subcaves | Shifting Twisted Machinery released Piercing Trap 2370 | -10/Subcaves | Shifting Twisted Machinery released Riot Gun 3275 | -10/Subcaves | Shifting Twisted Machinery released Battle Rifle 3278 | -10/Subcaves | Shifting Twisted Machinery released Flamer 3367 | -10/Subcaves | Learned location of Zion (-6) 3367 | -10/Subcaves | Met a Zionite searching for "candidates" 3423 | -10/Subcaves | Visited 4L-MR0's lab 3452 | -10/Subcaves | Found Rainbow Chip 3454 | -10/Subcaves | Attached Rainbow Chip, gained temporary slots: Power, Propulsion, Utility, Weapon 3670 | -10/Subcaves | Visited Clippyterm 3674 | -10/Subcaves | Learned Research security intel 4210 | -10/Subcaves | Learned location of 1 exit from Materials 4371 | -10/Subcaves | A Subdweller sparked back to life 4371 | -10/Subcaves | A Subdweller sparked back to life 4371 | -10/Subcaves | A Subdweller sparked back to life 4401 | -10/Subcaves | Destroyed by FM-OC5(R) with Subdweller Machine Gun Last Messages --------------- 03945_ Acquired 11 matter. 04013_ R9-38K(u) builds Twisted Machinery. 04030_ Subatomizers dissect the Sub. Power Source. 04123_ Y-45 Defender destroyed. 04131_ Imp. Ion Engine fries itself beyond repair. 04131_ Acquired 52 matter. 04133_ Acquired Hvy. Assault Rifle. 04134_ Beam Rifle fries itself beyond repair. 04134_ Dropped Hvy. Assault Rifle. 04137_ Heat Sink fries itself beyond repair. 04210_ Acquired derelict log, extracted data. Data stored: Materials exits (x1). 04371_ F9-8QF(R) creaks and sparks as it begins to move. 04371_ FM-OC5(R) creaks and sparks as it begins to move. 04371_ XB-KPI(R) creaks and sparks as it begins to move. 04389_ Scrap Shield destroyed. 04391_ Temporary Utility slot lost. 04393_ Ion Engine destroyed. 04394_ F9-8QF(R) shuts down. 04400_ Attempting to rewire F9-8QF(R). Map ----- +----------------------------------------------------+ | #???## #??????## #??# ## ## | | #???# ##???????## #??##### #### | | ### #??# ###????????## ##???????# ### | | ??# #?# #???????????###???????## ### | | ??# ##?## #????????????????????# # | | ?# #???### #???????????????????## | | ?? #???#?# #??????????????????## ### | | ? ?????# #### #???????##???????### # | | #???# #??? #??????## ##????## # | | ??? ??? ?####?# ##?## # | | ## ??? ???? ## ### [ # | | #?###### ??# ???? ## # | | ????????#???## ????? ## | | ?????????????? ?????? ??? ## | | ?????????????? ????????????# #### ## | | ?????????????????????????????# ### ## | | ???????#####?????????????????????# ## #### | | ??????## ##??????????????????### #?# | | ??????#"" ##???????????????### ##?### | | ??????# #??????????????## ### #?### | | ??????## ##?????????????## ##?## ## | | ???????# ""################# ; ##??### # | | ??????## #"##" # ## # ## #????## ## | | ?????## "" "" R # ###??????#### | | ?????# " "# ## #" R ### #?????????###### | | ?????#### ######## #R@ ##?# ##?????????# | | ????????# # # ### ### #??###??????##### | | ????????# "" & #?####???????##### # ## | | ????????######"## " ##????????????# ##? | | ?????????????#### "#????????????# ##### ###?? | | ????????????????#" #????????????#####???###???? | | ????????????????#" & #??????????????????????????? | | ????????????????# ##??????????????????????????? | | ????????????????"#####???????????????????????????? | | ?????????????????????????????????????????????????? | | ?????????????????????????????????????????????????? | | ?????????????????????????????????????????????????? | | ?????????????????????????????????????????????????? | | ?????????????????????????????????????????????????? | | ?????????????????????????????????????????????????? | | ?????????????????????????????????????????????????? | | ?????????????????????????????????????????????????? | | ?????????????????????????????????????????????????? | | ?????????????????????????????????????????????????? | | ?????????????????????????????????????????????????? | | ?????????????????????????????????????????????????? | | ?????????????????????????????????????????????????? | | | | | | | +----------------------------------------------------+ Best States ------------- Heat Dissipation 25 Energy Generation 15 Energy Capacity 400 Matter Stores 300 Matter Capacity 300 Sight Range 16 Terrain Scan Range 14 Terrain Scan Density 10 Armor Coverage 800 Evasion (%) 55 Recoil Reduction 2 Offensive Hacking 10 Item Schematics ----------------- None Robot Schematics ------------------ None Fabricated ------------ Nothing Alien Tech Used ----------------- None Achievements -------------- None Challenges ------------ None Game ------ Seed DefenseImpulseFirepult Manual? 0 Play Time 00:24:29 Cumulative 140.8 hours Start 2024.11.26 @ 09:51:17 End 2024.11.26 @ 10:13:21 Sessions 1 Manual Loads 0 Difficulty Rogue Special Mode None Game No. 272 Rogue 272 Adventurer 0 Explorer 0 Win Type - Total 0 Types 0/0/0/0/0/0/0/0/0 Lore% 43 Gallery% 41 Achievement% 36 Wizard Run 0 Options --------- Layout 0 ASCII 0 Keyboard 0 Movement Mouse Keybinds 0 Fullscreen 1 Font 24/Smallcaps Map View 91x25 Zoom Use 87% Tactical HUD 1 Map Filters NONE Filters NONE Steam 1 RUN: 09942b5f-f982-4250-b25e-a2fd59244646